fUST/lending_fUST_20250608
["ID","MTS","AMOUNT","RATE_DAILY","PERIOD"]
[364946814,1749337846260,-430.01611677,0.00021089,2]
[364946815,1749337846270,-277.11675586,0.00021089,2]
[364946816,1749337846280,-153.0,0.000211,2]
[364946817,1749337846290,-153.0,0.000211,2]
[364946818,1749337846300,-364.7843186,0.000211,2]
[364946819,1749337846310,-420.0,0.00021126,2]
[364946820,1749337846320,-440.0,0.00021126,2]
[364946821,1749337846330,-440.0,0.00021126,2]
[364946822,1749337846341,-440.0,0.00021126,2]
[364946823,1749337846350,-440.0,0.00021126,2]
[364946824,1749337846360,-440.0,0.00021126,2]
[364946825,1749337846370,-1097.36,0.00021126,2]
[364946826,1749337846379,-440.0,0.00021126,2]
[364946827,1749337846390,-440.0,0.00021126,2]
[364946828,1749337846400,-440.0,0.00021126,2]
[364946829,1749337846412,-654.22,0.00021126,2]
[364946830,1749337846422,-507.7,0.00021126,2]
[364946831,1749337846431,-440.0,0.00021126,2]
[364946832,1749337846441,-440.0,0.00021126,2]
[364946833,1749337846451,-440.0,0.00021126,2]
[364946834,1749337846462,-585.76017232,0.00021126,2]
[364946835,1749337846472,-260.19329504,0.00021127,2]
[364946836,1749337846481,-596.48,0.00021127,2]
[364946837,1749337846491,-440.0,0.00021127,2]
[364946838,1749337846500,-410.0,0.00021127,2]
[364946839,1749337846511,-440.0,0.00021127,2]
[364946840,1749337846520,-440.0,0.00021127,2]
[364946841,1749337846531,-440.0,0.00021127,2]
[364946842,1749337846541,-324.94,0.00021127,2]
[364946843,1749337846551,-540.3,0.00021127,2]
[364946844,1749337846561,-440.0,0.00021127,2]
[364946845,1749337846571,-390.0,0.00021127,2]
[364946846,1749337846580,-373.96897861,0.00021127,2]
[364946847,1749337846590,-440.0,0.00021127,2]
[364946848,1749337846601,-440.0,0.00021127,2]
[364946849,1749337846611,-158.5442955,0.000212,2]
[364946850,1749337846621,-153.0,0.000212,2]
[364946851,1749337846631,-364.7843186,0.000212,2]
[364946852,1749337846641,-572.6068135,0.000212,2]
[364946853,1749337846652,-153.0,0.000212,2]
[364946854,1749337846664,-440.0,0.00021306,2]
[364946855,1749337846674,-500.0,0.00021392,2]
[364946856,1749337846683,-440.0,0.000214,2]
[364946857,1749337846693,-440.0,0.000214,2]
[364946858,1749337846703,-440.0,0.000214,2]
[364946859,1749337846714,-440.0,0.000214,2]
[364946860,1749337846723,-440.0,0.000214,2]
[364946861,1749337846733,-1097.36,0.000214,2]
[364946862,1749337846744,-440.0,0.000214,2]
[364946863,1749337846754,-440.0,0.000214,2]
[364946864,1749337846764,-440.0,0.000214,2]
[364946865,1749337846774,-300.898304,0.000214,2]
[364946866,1749337846783,-654.22,0.000214,2]
[364946867,1749337846793,-151.0,0.000214,2]
[364946868,1749337846802,-507.7,0.000214,2]
[364946869,1749337846812,-440.0,0.000214,2]
[364946870,1749337846821,-154.280183,0.000214,2]
[364946871,1749337846831,-440.0,0.000214,2]
[364946872,1749337846841,-201.25,0.000214,2]
[364946873,1749337846851,-422.74325039,0.00021401,2]
[364946874,1749337846864,-173.73674961,0.00021401,2]
[364946875,1749337846874,-283.08,0.00021401,2]
[364946876,1749337846884,-440.0,0.00021401,2]
[364946877,1749337846894,-440.0,0.00021401,2]
[364946878,1749337846903,-440.0,0.00021401,2]
[364946879,1749337846913,-540.3,0.00021401,2]
[364946880,1749337846923,-41.87744754,0.00021401,2]
[364946882,1749338194460,165.977138,0.00013699,2]
[364946885,1749338829102,-1200.0,0.00018637,2]
[364946886,1749338829137,-1066.20092582,0.00018638,2]
[364946887,1749338829169,-2010.82585239,0.00018638,2]
[364946893,1749338967111,-199.735643,0.00018383,2]
[364946894,1749338967132,-164.90024098,0.00018538,2]
[364946895,1749338967153,-5402.58341319,0.00018638,2]
[364946896,1749338967174,-150.0,0.000189,2]
[364946897,1749338967198,-218.2191477,0.00018917,2]
[364946898,1749338967220,-300.0,0.00019017,2]
[364946899,1749338967241,-349.37482066,0.00019018,2]
[364946900,1749338967263,-300.0,0.00019018,2]
[364946901,1749338967284,-300.0,0.00019018,2]
[364946902,1749338967306,-300.0,0.00019018,2]
[364946903,1749338967327,-216.491731,0.00019019,2]
[364946904,1749338967349,-9980.32910456,0.00019019,2]
[364946905,1749338967378,-2677.1542,0.00019019,2]
[364946906,1749338970184,-10684.81599934,0.00019019,2]
[364946907,1749338970210,-167.34393128,0.00019078,2]
[364946908,1749338970233,-493.24,0.00019178,2]
[364946909,1749338970256,-440.0,0.00019178,2]
[364946910,1749338970280,-440.0,0.00019178,2]
[364946911,1749338970303,-430.0,0.00019178,2]
[364946912,1749338970328,-440.0,0.00019178,2]
[364946913,1749338970350,-430.0,0.00019178,2]
[364946914,1749338970373,-440.0,0.00019178,2]
[364946915,1749338970398,-1196.5,0.00019178,2]
[364946916,1749338970424,-440.0,0.00019178,2]
[364946917,1749338970450,-440.0,0.00019178,2]
[364946918,1749338970474,-440.0,0.00019178,2]
[364946919,1749338970498,-440.0,0.00019178,2]
[364946920,1749338970526,-490.86192204,0.00019452,2]
[364946978,1749339032116,-164.93541519,0.00018978,2]
[364946979,1749339032127,-1200.0,0.00019076,2]
[364946980,1749339032138,-29030.07242,0.00019077,2]
[364946981,1749339032149,-300.0,0.00019177,2]
[364946983,1749339032159,-440.0,0.00019178,2]
[364946985,1749339032169,-430.0,0.00019178,2]
[364946986,1749339032180,-440.0,0.00019178,2]
[364946987,1749339032190,-832.05,0.00019178,2]
[364946988,1749339032199,-454.2,0.00019178,2]
[364946989,1749339032209,-560.81,0.00019178,2]
[364946990,1749339032220,-440.0,0.00019178,2]
[364946991,1749339032230,-430.0,0.00019178,2]
[364946992,1749339032240,-430.0,0.00019178,2]
[364946993,1749339032250,-430.0,0.00019178,2]
[364946994,1749339032261,-430.0,0.00019178,2]
[364946995,1749339032271,-430.0,0.00019178,2]
[364946996,1749339032282,-705.63807796,0.00019452,2]
[364946997,1749339032291,-440.0,0.00019452,2]
[364946998,1749339032302,-440.0,0.00019452,2]
[364946999,1749339032312,-832.05,0.00019452,2]
[364947000,1749339032322,-454.2,0.00019452,2]
[364947001,1749339032332,-560.81,0.00019452,2]
[364947002,1749339032341,-440.0,0.00019452,2]
[364947003,1749339032352,-1196.5,0.00019726,2]
[364947004,1749339032362,-440.0,0.00019726,2]
[364947005,1749339032373,-440.0,0.00019726,2]
[364947006,1749339032385,-832.05,0.00019726,2]
[364947007,1749339032396,-454.2,0.00019726,2]
[364947008,1749339032406,-560.81,0.00019726,2]
[364947009,1749339032417,-440.0,0.00019726,2]
[364947010,1749339032428,-668.1876252,0.00019734,2]
[364947011,1749339032439,-205.90443369,0.000199,2]
[364947012,1749339032449,-500.0,0.00019999,2]
[364947013,1749339032459,-430.0,0.00019999,2]
[364947014,1749339032469,-430.0,0.00019999,2]
[364947015,1749339032479,-453.56313406,0.00019999,2]
[364947016,1749339032490,-430.0,0.00019999,2]
[364947017,1749339032500,-452.05,0.00019999,2]
[364947018,1749339032512,-430.0,0.00019999,2]
[364947019,1749339032522,-440.0,0.00019999,2]
[364947020,1749339032533,-567.69,0.00019999,2]
[364947021,1749339032543,-440.0,0.00019999,2]
[364947022,1749339032554,-440.0,0.00019999,2]
[364947023,1749339032563,-440.0,0.00019999,2]
[364947024,1749339032573,-430.0,0.00019999,2]
[364947025,1749339032583,-440.0,0.00019999,2]
[364947026,1749339032594,-430.0,0.00019999,2]
[364947027,1749339032604,-430.0,0.00019999,2]
[364947028,1749339032616,-430.0,0.00019999,2]
[364947029,1749339032627,-440.0,0.00019999,2]
[364947030,1749339032638,-430.0,0.00019999,2]
[364947031,1749339032649,-440.0,0.00019999,2]
[364947032,1749339032660,-440.0,0.00019999,2]
[364947033,1749339032672,-440.0,0.00019999,2]
[364947034,1749339032683,-430.0,0.00019999,2]
[364947035,1749339032692,-440.0,0.00019999,2]
[364947036,1749339032705,-440.0,0.00019999,2]
[364947037,1749339032715,-440.0,0.00019999,2]
[364947038,1749339032725,-430.0,0.00019999,2]
[364947039,1749339032735,-440.0,0.00019999,2]
[364947040,1749339032746,-440.0,0.00019999,2]
[364947041,1749339032756,-440.0,0.00019999,2]
[364947042,1749339032765,-440.0,0.00019999,2]
[364947043,1749339032775,-440.0,0.00019999,2]
[364947044,1749339032785,-19000.0,0.0002,3]
[364947045,1749339032795,-11851.94353573,0.0002,3]
[364947046,1749339032806,-213.01382694,0.0002,3]
[364947047,1749339032815,-1196.5,0.0002,2]
[364947048,1749339032826,-440.0,0.0002,2]
[364947049,1749339032836,-440.0,0.0002,2]
[364947050,1749339032848,-832.05,0.0002,2]
[364947051,1749339032860,-454.2,0.0002,2]
[364947052,1749339032871,-560.81,0.0002,2]
[364947053,1749339032881,-440.0,0.0002,2]
[364947054,1749339032891,-205.90443361,0.00020178,2]
[364947055,1749339032902,-500.0,0.00020272,2]
[364947056,1749339032911,-272.83287576,0.00020272,2]
[364947057,1749339032921,-500.0,0.00020272,2]
[364947058,1749339032930,-151.0,0.00020273,2]
[364947059,1749339032940,-151.0,0.00020273,2]
[364947060,1749339032950,-440.0,0.00020273,2]
[364947061,1749339032960,-440.0,0.00020273,2]
[364947062,1749339032970,-253.565786,0.00020273,2]
[364947063,1749339032980,-151.0,0.00020273,2]
[364947064,1749339032990,-253.565786,0.00020273,2]
[364947065,1749339033000,-151.0,0.00020273,2]
[364947066,1749339033010,-151.0,0.00020273,2]
[364947067,1749339033019,-269.761555,0.00020273,2]
[364947068,1749339033029,-440.0,0.00020273,2]
[364947069,1749339033039,-440.0,0.00020273,2]
[364947070,1749339033048,-440.0,0.00020273,2]
[364947071,1749339033059,-151.0,0.00020273,2]
[364947072,1749339033068,-151.0,0.00020273,2]
[364947073,1749339033079,-151.0,0.00020273,2]
[364947074,1749339033088,-151.0,0.00020273,2]
[364947075,1749339033098,-282.886262,0.00020273,2]
[364947076,1749339033108,-293.232886,0.00020273,2]
[364947077,1749339033118,-151.0,0.00020273,2]
[364947078,1749339033128,-152.742315,0.00020273,2]
[364947079,1749339033138,-232.44,0.00020273,2]
[364947080,1749339033148,-152.742315,0.00020273,2]
[364947081,1749339033158,-1196.5,0.00020273,2]
[364947082,1749339033169,-440.0,0.00020273,2]
[364947083,1749339033179,-151.0,0.00020273,2]
[364947084,1749339033189,-440.0,0.00020273,2]
[364947085,1749339033199,-218.975312,0.00020273,2]
[364947086,1749339033210,-440.0,0.00020273,2]
[364947087,1749339033221,-440.0,0.00020273,2]
[364947088,1749339033230,-440.0,0.00020273,2]
[364947089,1749339033240,-440.0,0.00020273,2]
[364947090,1749339033250,-832.05,0.00020273,2]
[364947091,1749339033259,-454.2,0.00020273,2]
[364947092,1749339033270,-283.588121,0.00020273,2]
[364947093,1749339033279,-259.034446,0.00020273,2]
[364947094,1749339033289,-283.588121,0.00020273,2]
[364947095,1749339033298,-259.034446,0.00020273,2]
[364947096,1749339033309,-560.81,0.00020273,2]
[364947097,1749339033318,-151.0,0.00020273,2]
[364947098,1749339033328,-151.0,0.00020273,2]
[364947099,1749339033338,-151.0,0.00020273,2]
[364947100,1749339033348,-430.0,0.00020273,2]
[364947101,1749339033357,-440.0,0.00020273,2]
[364947102,1749339033367,-350.09027495,0.00020273,2]
[364947103,1749339033378,-430.0,0.00020273,2]
[364947104,1749339033388,-220.0,0.00020273,2]
[364947105,1749339033398,-1149.85457983,0.00020447,2]
[364947106,1749339033408,-167.34393128,0.00020455,2]
[364947107,1749339033418,-205.90443361,0.00020456,3]
[364947108,1749339033427,-151.0,0.00020547,2]
[364947109,1749339033437,-544.6,0.00020547,2]
[364947110,1749339033448,-440.0,0.00020547,2]
[364947111,1749339033458,-501.7,0.00020547,2]
[364947112,1749339033469,-440.0,0.00020547,2]
[364947113,1749339033479,-440.0,0.00020547,2]
[364947114,1749339033490,-290.036668,0.00020547,2]
[364947115,1749339033500,-152.742315,0.00020547,2]
[364947116,1749339033510,-152.742315,0.00020547,2]
[364947117,1749339033520,-1196.5,0.00020547,2]
[364947118,1749339033531,-440.0,0.00020547,2]
[364947119,1749339033541,-440.0,0.00020547,2]
[364947120,1749339033552,-440.0,0.00020547,2]
[364947121,1749339033562,-440.0,0.00020547,2]
[364947122,1749339033572,-440.0,0.00020547,2]
[364947123,1749339033582,-440.0,0.00020547,2]
[364947124,1749339033592,-832.05,0.00020547,2]
[364947125,1749339033602,-454.2,0.00020547,2]
[364947126,1749339033612,-283.588121,0.00020547,2]
[364947127,1749339033622,-259.034446,0.00020547,2]
[364947128,1749339033632,-283.588121,0.00020547,2]
[364947129,1749339033642,-259.034446,0.00020547,2]
[364947130,1749339033652,-560.81,0.00020547,2]
[364947131,1749339033661,-151.0,0.00020547,2]
[364947132,1749339033671,-151.0,0.00020547,2]
[364947133,1749339033681,-440.0,0.00020547,2]
[364947134,1749339033691,-160.0,0.00020554,2]
[364947135,1749339033702,-151.0,0.00020567,2]
[364947136,1749339033714,-253.565786,0.00020567,2]
[364947137,1749339033724,-151.0,0.00020567,2]
[364947138,1749339033735,-253.565786,0.00020567,2]
[364947139,1749339033745,-154.466733,0.00020567,2]
[364947140,1749339033756,-151.0,0.00020567,2]
[364947141,1749339033766,-151.0,0.00020567,2]
[364947142,1749339033776,-151.0,0.00020567,2]
[364947143,1749339033787,-642.07,0.00020567,3]
[364947144,1749339033798,-3249.5,0.00020567,3]
[364947145,1749339033808,-1624.75,0.00020567,3]
[364947146,1749339033817,-812.38,0.00020567,3]
[364947147,1749339033827,-406.19,0.00020567,3]
[364947148,1749339033837,-203.09,0.00020567,3]
[364947149,1749339033846,-609.3,0.00020567,3]
[364947150,1749339033856,-346.24338429,0.00020576,2]
[364947151,1749339033866,-440.0,0.00020576,2]
[364947152,1749339033877,-695.4,0.00020576,2]
[364947153,1749339033887,-457.02,0.00020576,2]
[364947154,1749339033897,-440.0,0.00020576,2]
[364947155,1749339033907,-430.0,0.00020576,2]
[364947156,1749339033917,-430.0,0.00020576,2]
[364947157,1749339033928,-349.48523347,0.00020576,2]
[364947158,1749339033937,-440.0,0.00020576,2]
[364947159,1749339033947,-440.0,0.00020576,2]
[364947160,1749339033957,-430.0,0.00020576,2]
[364947161,1749339033966,-430.0,0.00020576,2]
[364947162,1749339033977,-440.0,0.00020576,2]
[364947163,1749339033987,-440.0,0.00020576,2]
[364947164,1749339033997,-688.58,0.00020576,2]
[364947165,1749339034007,-440.0,0.00020576,2]
[364947166,1749339034017,-529.0,0.00020576,2]
[364947167,1749339034027,-151.0,0.00020576,2]
[364947168,1749339034037,-430.0,0.00020576,2]
[364947169,1749339034048,-430.0,0.00020576,2]
[364947170,1749339034058,-440.0,0.00020576,2]
[364947171,1749339034068,-430.0,0.00020576,2]
[364947172,1749339034078,-430.0,0.00020577,2]
[364947173,1749339034088,-430.0,0.00020577,2]
[364947174,1749339034099,-430.0,0.00020577,2]
[364947175,1749339034108,-430.0,0.00020577,2]
[364947176,1749339034118,-430.0,0.00020577,2]
[364947177,1749339034128,-430.0,0.00020577,2]
[364947178,1749339034138,-430.0,0.00020577,2]
[364947179,1749339034148,-430.0,0.00020577,2]
[364947180,1749339034158,-430.0,0.00020577,2]
[364947181,1749339034168,-185.571,0.00020577,2]
[364947182,1749339034178,-430.0,0.00020577,2]
[364947183,1749339034188,-430.0,0.00020577,2]
[364947184,1749339034198,-380.0,0.00020577,2]
[364947185,1749339034208,-430.0,0.00020577,2]
[364947186,1749339034218,-434.59191571,0.00020577,2]
[364947187,1749339034228,-392.43320601,0.00020577,2]
[364947188,1749339034238,-392.13753428,0.00020577,2]
[364947189,1749339034249,-430.0,0.00020577,2]
[364947190,1749339034258,-430.0,0.00020577,2]
[364947191,1749339034268,-430.0,0.00020577,2]
[364947192,1749339034278,-430.0,0.00020577,2]
[364947193,1749339034288,-430.0,0.00020577,2]
[364947194,1749339034298,-430.0,0.00020577,2]
[364947195,1749339034308,-463.06820166,0.00020577,2]
[364947196,1749339034318,-500.0,0.00020577,2]
[364947197,1749339034327,-430.0,0.00020577,2]
[364947198,1749339034337,-556.31320311,0.00020577,2]
[364947199,1749339034347,-430.0,0.00020577,2]
[364947200,1749339034357,-430.0,0.00020577,2]
[364947201,1749339034367,-430.0,0.00020577,2]
[364947202,1749339034376,-430.0,0.00020577,2]
[364947203,1749339034386,-430.0,0.00020577,2]
[364947204,1749339034397,-214.72553952,0.00020577,2]
[364947205,1749339034406,-430.0,0.00020577,2]
[364947206,1749339034417,-430.0,0.00020577,2]
[364947207,1749339034427,-430.0,0.00020577,2]
[364947208,1749339034437,-430.0,0.00020577,2]
[364947209,1749339034447,-430.0,0.00020577,2]
[364947210,1749339034457,-430.0,0.00020577,2]
[364947211,1749339034469,-430.0,0.00020577,2]
[364947212,1749339034479,-430.0,0.00020577,2]
[364947213,1749339034490,-430.0,0.00020577,2]
[364947214,1749339034500,-430.0,0.00020577,2]
[364947215,1749339034510,-431.65963659,0.00020577,2]
[364947216,1749339034520,-430.0,0.00020577,2]
[364947217,1749339034531,-430.0,0.00020577,2]
[364947218,1749339034541,-430.0,0.00020577,2]
[364947219,1749339034551,-430.0,0.00020577,2]
[364947220,1749339034561,-521.48385167,0.00020577,2]
[364947221,1749339034571,-151.0,0.00020577,2]
[364947222,1749339034581,-151.0,0.00020577,2]
[364947223,1749339034591,-430.0,0.00020577,2]
[364947224,1749339034602,-151.0,0.00020577,2]
[364947225,1749339034612,-151.0,0.00020577,2]
[364947226,1749339034622,-315.7105575,0.00020577,2]
[364947227,1749339034632,-430.0,0.00020577,2]
[364947228,1749339034641,-430.0,0.00020577,2]
[364947229,1749339034651,-430.0,0.00020577,2]
[364947230,1749339034661,-430.0,0.00020577,2]
[364947231,1749339034671,-561.81940469,0.00020577,2]
[364947232,1749339034682,-430.0,0.00020577,2]
[364947233,1749339034692,-430.0,0.00020577,2]
[364947234,1749339034704,-430.0,0.00020577,2]
[364947235,1749339034716,-806.813462,0.00020577,2]
[364947236,1749339034725,-430.0,0.00020577,2]
[364947237,1749339034736,-430.0,0.00020577,2]
[364947238,1749339034745,-430.0,0.00020577,2]
[364947239,1749339034755,-430.0,0.00020577,2]
[364947240,1749339034765,-440.0,0.00020577,2]
[364947241,1749339034775,-430.0,0.00020577,2]
[364947242,1749339034784,-430.0,0.00020577,2]
[364947243,1749339034794,-430.0,0.00020577,2]
[364947244,1749339034804,-151.0,0.00020577,2]
[364947245,1749339034813,-151.0,0.00020577,2]
[364947246,1749339034823,-225.977102,0.00020577,2]
[364947247,1749339034833,-225.977102,0.00020577,2]
[364947248,1749339034843,-151.0,0.00020577,2]
[364947249,1749339034853,-205.528043,0.00020577,2]
[364947250,1749339034865,-500.0,0.00020577,2]
[364947251,1749339034878,-430.0,0.00020577,2]
[364947252,1749339034888,-430.0,0.00020577,2]
[364947253,1749339034899,-151.0,0.00020577,2]
[364947254,1749339035033,-151.0,0.00020577,2]
[364947255,1749339035046,-151.0,0.00020577,2]
[364947256,1749339035057,-430.0,0.00020577,2]
[364947257,1749339035066,-151.0,0.00020577,2]
[364947258,1749339035078,-151.0,0.00020577,2]
[364947259,1749339035089,-430.0,0.00020577,2]
[364947260,1749339035100,-151.0,0.00020577,2]
[364947261,1749339035112,-430.0,0.00020577,2]
[364947262,1749339035124,-440.0,0.00020577,2]
[364947263,1749339035135,-151.0,0.00020577,2]
[364947264,1749339035145,-327.142511,0.00020577,2]
[364947265,1749339035155,-327.142511,0.00020577,2]
[364947266,1749339035165,-440.0,0.00020577,2]
[364947267,1749339035175,-327.142511,0.00020577,2]
[364947268,1749339035186,-327.142511,0.00020577,2]
[364947269,1749339035196,-430.0,0.00020577,2]
[364947270,1749339035206,-430.0,0.00020577,2]
[364947271,1749339035216,-440.0,0.00020577,2]
[364947272,1749339035226,-440.0,0.00020577,2]
[364947273,1749339035236,-500.0,0.00020577,2]
[364947274,1749339035245,-430.0,0.00020577,2]
[364947275,1749339035256,-440.0,0.00020577,2]
[364947276,1749339035267,-430.0,0.00020577,2]
[364947277,1749339035276,-156.79959206,0.00020577,2]
[364947278,1749339035287,-430.0,0.00020577,2]
[364947279,1749339035297,-430.0,0.00020577,2]
[364947280,1749339035309,-253.565786,0.00020577,2]
[364947281,1749339035320,-253.565786,0.00020577,2]
[364947282,1749339035331,-151.0,0.00020577,2]
[364947283,1749339035342,-151.0,0.00020577,2]
[364947284,1749339035351,-253.565786,0.00020577,2]
[364947285,1749339035360,-253.565786,0.00020577,2]
[364947286,1749339035370,-498.40816944,0.00020577,2]
[364947287,1749339035379,-440.0,0.00020577,2]
[364947288,1749339035390,-440.0,0.00020577,2]
[364947289,1749339035399,-440.0,0.00020577,2]
[364947290,1749339035409,-453.43897535,0.00020577,2]
[364947291,1749339035420,-440.0,0.00020577,2]
[364947292,1749339035431,-207.57689812,0.00020577,2]
[364947293,1749339035440,-440.0,0.00020577,2]
[364947294,1749339035451,-151.0,0.00020577,2]
[364947295,1749339035461,-440.0,0.00020577,2]
[364947296,1749339035471,-151.0,0.00020577,2]
[364947297,1749339035481,-440.0,0.00020577,2]
[364947298,1749339035492,-430.0,0.00020577,2]
[364947299,1749339035502,-269.96376332,0.00020577,2]
[364947300,1749339035513,-440.0,0.00020577,2]
[364947301,1749339035525,-151.0,0.00020577,2]
[364947302,1749339035534,-151.0,0.00020577,2]
[364947303,1749339035544,-151.0,0.00020577,2]
[364947304,1749339035553,-430.0,0.00020577,2]
[364947305,1749339035563,-151.0,0.00020577,2]
[364947306,1749339035572,-151.0,0.00020577,2]
[364947307,1749339035581,-151.0,0.00020577,2]
[364947308,1749339035591,-430.0,0.00020577,2]
[364947309,1749339035600,-152.742315,0.00020577,2]
[364947310,1749339035610,-152.742315,0.00020577,2]
[364947311,1749339035619,-152.742315,0.00020577,2]
[364947312,1749339035629,-430.0,0.00020577,2]
[364947313,1749339035639,-152.742315,0.00020577,2]
[364947314,1749339035648,-152.742315,0.00020577,2]
[364947315,1749339035657,-152.742315,0.00020577,2]
[364947316,1749339035667,-450.0,0.00020577,2]
[364947317,1749339035677,-430.0,0.00020577,2]
[364947318,1749339035687,-440.0,0.00020577,2]
[364947319,1749339035697,-440.0,0.00020577,2]
[364947320,1749339035712,-430.0,0.00020577,2]
[364947321,1749339035723,-430.0,0.00020577,2]
[364947322,1749339035734,-430.0,0.00020577,2]
[364947323,1749339035744,-440.0,0.00020577,2]
[364947324,1749339035755,-283.588121,0.00020577,2]
[364947325,1749339035765,-283.588121,0.00020577,2]
[364947326,1749339035775,-283.588121,0.00020577,2]
[364947327,1749339035786,-259.034446,0.00020577,2]
[364947328,1749339035796,-259.034446,0.00020577,2]
[364947329,1749339035807,-430.0,0.00020577,2]
[364947330,1749339035816,-259.034446,0.00020577,2]
[364947331,1749339035836,-283.588121,0.00020577,2]
[364947332,1749339035846,-283.588121,0.00020577,2]
[364947333,1749339035856,-283.588121,0.00020577,2]
[364947334,1749339035866,-259.034446,0.00020577,2]
[364947335,1749339035876,-259.034446,0.00020577,2]
[364947336,1749339035885,-259.034446,0.00020577,2]
[364947337,1749339035895,-483.66223302,0.00020577,2]
[364947338,1749339035904,-151.0,0.00020577,2]
[364947339,1749339035914,-151.0,0.00020577,2]
[364947340,1749339035924,-151.0,0.00020577,2]
[364947341,1749339035934,-430.80705133,0.00020577,2]
[364947342,1749339035944,-450.0,0.00020577,2]
[364947343,1749339035954,-151.0,0.00020577,2]
[364947344,1749339035963,-151.0,0.00020577,2]
[364947345,1749339035974,-237.0,0.00020577,2]
[364947346,1749339035983,-430.0,0.00020577,2]
[364947347,1749339035993,-440.0,0.00020577,2]
[364947348,1749339036003,-430.0,0.00020577,2]
[364947349,1749339036012,-834.52263295,0.00020578,2]
[364947350,1749339036021,-842.5625,0.00020578,2]
[364947351,1749339036031,-440.0,0.00020578,2]
[364947352,1749339036040,-430.0,0.00020578,2]
[364947353,1749339036050,-151.0,0.00020578,2]
[364947354,1749339036060,-186.258156,0.00020578,2]
[364947355,1749339036069,-151.0,0.00020578,2]
[364947356,1749339036079,-151.0,0.00020578,2]
[364947357,1749339036089,-151.0,0.00020578,2]
[364947358,1749339036099,-806.813462,0.00020578,2]
[364947359,1749339036108,-151.0,0.00020578,2]
[364947360,1749339036117,-225.977102,0.00020578,2]
[364947361,1749339036126,-225.977102,0.00020578,2]
[364947362,1749339036136,-205.528043,0.00020578,2]
[364947363,1749339036145,-151.0,0.00020578,2]
[364947364,1749339036155,-151.0,0.00020578,2]
[364947365,1749339036164,-151.0,0.00020578,2]
[364947366,1749339036174,-151.0,0.00020578,2]
[364947367,1749339036183,-151.0,0.00020578,2]
[364947368,1749339036193,-253.565786,0.00020578,2]
[364947369,1749339036202,-151.0,0.00020578,2]
[364947370,1749339036212,-253.565786,0.00020578,2]
[364947371,1749339036221,-151.0,0.00020578,2]
[364947372,1749339036231,-151.0,0.00020578,2]
[364947373,1749339036241,-152.742315,0.00020578,2]
[364947374,1749339036251,-152.742315,0.00020578,2]
[364947375,1749339036260,-930.35557,0.00020578,7]
[364947376,1749339036270,-152.742315,0.00020578,2]
[364947377,1749339036279,-152.742315,0.00020578,2]
[364947378,1749339036288,-283.588121,0.00020578,2]
[364947379,1749339036298,-283.588121,0.00020578,2]
[364947380,1749339036308,-259.034446,0.00020578,2]